Cogmind - Beta 16.1 @@@ ROGUE MODE // 2026.03.13 @ 17:36:57 Player: H3-MLN Result: Destroyed by Z-Imprinter with Zionite Laser-M Performance ------------- Evolutions (3) 1500 Regions Visited (10) 2000 Robots Destroyed (108) 540 Value Destroyed (2636) 2636 Prototype IDs (10) 200 Alien Tech Used (0) 0 Bonus (289) 289 TOTAL SCORE: 7165 Bonus ------- Met Imprinter 300 Friendly Fire -11 Cogmind --------- Core Integrity 0/700 Matter 20/300 Energy 350/350 System Corruption 6% Temperature Cool (9) Movement Treading (330) Ox2 Location -7/Deep Caves Parts ------- > --- POWER (1) -------- Reinforced Quantum Reactor > --- PROPULSION (4) --- Armored Treads Compact Wheel > --- UTILITY (6) ------ Experimental Power Amplifier Experimental Cooling System Large Storage Unit Salvage Targeting Computer > --- WEAPON (2) ------- Gatling Laser > --- INVENTORY (15) --- Experimental Energy Well (600) Experimental Energy Well (600) Experimental Energy Well (600) Hacking Drone Bay (1/1) Improved EM Pulse Cannon Improved EM Pulse Cannon Rocket Array Rocket Array Datajack Ripper Tearclaws Phasing Sabre Peak State ------------ > --- POWER ------------ Reinforced Quantum Reactor > --- PROPULSION ------- Armored Treads Armored Heavy Treads Compact Wheel > --- UTILITY ---------- Experimental Power Amplifier Experimental Cooling System Experimental Cooling System Large Storage Unit Salvage Targeting Computer Advanced Powered Armor > --- WEAPON ----------- Railgun Bore Cannon > --- INVENTORY -------- Experimental Energy Well Experimental Energy Well Experimental Energy Well Hacking Drone Bay Gatling Laser Improved EM Pulse Cannon Improved EM Pulse Cannon Rocket Array Rocket Array Datajack Ripper Tearclaws Phasing Sabre [Rating: 84] Favorites ----------- Power Reinforced Deuterium Engine Engine Reinforced Deuterium Engine Power Core Nuclear Core Reactor Reinforced Quantum Reactor Propulsion Medium Treads Treads Medium Treads Wheel Compact Wheel Utility Large Storage Unit Device Seismic Detector Storage Large Storage Unit Processor Core Analyzer Hackware Hacking Suite Protection Layered Medium Armor Plating Weapon Enhanced Autogun Energy Gun Gatling Laser Energy Cannon Improved EM Pulse Cannon Ballistic Gun Enhanced Autogun Ballistic Cannon Improved Light Cannon Launcher Missile Launcher Slashing Weapon Phasing Sabre Special Melee Weapon Datajack Build | -11 -10 -10 -10 -9 -8 -7 -7 -7 -7 -7 ------- Run | Yrd Mat Min Exi Min Mat Fac Low Low Zio Dee Slots Evolved 6 | . . . . . 4 2 . . . . Power . | . . . . . . . . . . . Propulsion 2 | . . . . . 2 . . . . . Utility 4 | . . . . . 2 2 . . . . Weapon . | . . . . . . . . . . . Parts Attached 84 | 8 9 4 . 3 8 22 5 1 22 2 Power 6 | 1 . . . 1 1 2 . . 1 . Engine 4 | 1 . . . 1 . 2 . . . . Core 1 | . . . . . 1 . . . . . Reactor 1 | . . . . . . . . . 1 . Propulsion 20 | 3 1 1 . 1 5 6 . . 3 . Treads 15 | 1 . . . 1 5 6 . . 2 . Leg . | . . . . . . . . . . . Wheel 5 | 2 1 1 . . . . . . 1 . Hover . | . . . . . . . . . . . Flight . | . . . . . . . . . . . Utility 28 | 2 2 . . . 2 9 3 1 9 . Device 12 | 1 . . . . . 3 2 1 5 . Storage 3 | 1 2 . . . . . . . . . Processor 2 | . . . . . . 1 . . 1 . Hackware 1 | . . . . . . 1 . . . . Protection 10 | . . . . . 2 4 1 . 3 . Artifact . | . . . . . . . . . . . Weapon 30 | 2 6 3 . 1 . 5 2 . 9 2 Energy Gun 3 | . 1 . . . . . . . 1 1 Energy Cannon 2 | . . . . . . . . . 2 . Ballistic Gun 9 | 2 1 . . . . 3 2 . 1 . Ballistic Cannon 6 | . 3 . . 1 . 1 . . 1 . Launcher 8 | . 1 3 . . . 1 . . 2 1 Special Weapon . | . . . . . . . . . . . Impact Weapon . | . . . . . . . . . . . Slashing Weapon 1 | . . . . . . . . . 1 . Piercing Weapon . | . . . . . . . . . . . Special Melee Weapon 1 | . . . . . . . . . 1 . Unidentified Prototypes 5 | . . . . . . 3 . . 2 . Parts Lost 24 | . . 1 . 1 1 5 1 . 10 5 Power 2 | . . 1 . . . 1 . . . . Propulsion 6 | . . . . 1 . 1 . . 3 1 Utility 10 | . . . . . . 3 . . 5 2 Weapon 6 | . . . . . 1 . 1 . 2 2 Highest Loss Streak 7 | . . 1 . 1 1 2 1 . 7 5 To Critical Strikes 1 | . . . . . . . . . 1 . Average Backups 14 | 2 10 14 15 14 14 14 14 14 13 13 Power . | . . . . . . . . . . . Propulsion . | 1 2 3 3 2 1 1 . . . . Utility 3 | . 1 2 2 2 4 3 3 3 3 4 Weapon 8 | . 6 9 10 10 9 8 10 9 8 6 Tool/Special . | . . . . . . . . . . . Unused Backups 21 | . 3 . . 2 1 3 . 3 4 5 Power 1 | . 1 . . . . . . . . . Propulsion 1 | . . . . . . 1 . . . . Utility 10 | . 1 . . 2 . . . 2 2 3 Weapon 8 | . 1 . . . 1 2 . 1 2 1 Tool/Special 1 | . . . . . . . . . . 1 Average Slot Usage (%) 95 | . 100 98 85 86 97 99 100 95 93 90 Engine 5 | . 14 12 . 1 5 4 7 7 5 . Treads 21 | . 14 14 14 14 24 29 30 25 19 14 Wheel 5 | . 14 14 14 13 11 . . . 5 7 Device 15 | . 14 14 14 14 9 17 16 15 14 22 Storage 8 | . 14 14 14 14 9 7 7 7 7 7 Processor 4 | . . . . . . 3 7 7 7 7 Protection 10 | . . . . . 16 15 13 14 14 6 Ballistic Gun 8 | . 16 . . . . 11 15 15 7 . Ballistic Cannon 7 | . 10 27 28 28 17 3 . . 2 6 Peak Build Rating 84 | 7 10 11 10 15 34 50 52 52 83 84 Average Rating 42 | 4 8 10 10 10 26 46 49 50 54 80 On Entrance 28 | . 7 10 10 10 15 34 49 52 49 82 Avg Prop Armor Cover (%) 12 | . 11 10 12 11 11 8 . . 15 17 Naked Turns . | . . . . . . . . . . . Heaviest Build 98 | 15 34 34 29 38 48 51 58 58 98 88 Greatest Support 112 | 32 16 10 10 10 112 112 106 106 84 16 Greatest Overweight (x) 6 | . 3 3 2 3 1 . . 1 6 5 Average Overweight (x) 1 | . . 2 2 2 . . . . 2 4 Largest Inventory Capacity 15 | 8 15 15 15 15 15 15 15 15 15 15 Average Capacity 14 | 6 12 15 15 15 15 15 15 15 15 15 Most Carried 15 | 4 14 15 15 15 15 15 15 15 15 15 Average Carried 14 | 2 10 14 15 14 14 14 14 14 14 14 Final Capacity 15 | 8 15 15 15 15 15 15 15 15 15 15 Final Carried 15 | 4 14 15 15 15 15 15 15 15 15 13 Class Distribution -------------------- 68% | Mutant 19% | Scavenger-Mutant 11% | Derelict-Mutant Dominant Class ---------------- Mutant | -10/Materials Mutant | -10/Mines Mutant | -10/Exiles Mutant | -9/Mines Scavenger-Mutant | -8/Materials Mutant | -7/Factory Scavenger-Mutant | -7/Lower Caves Mutant | -7/Lower Caves Mutant | -7/Zion Scavenger-Mutant | -7/Deep Caves Resources | -11 -10 -10 -10 -9 -8 -7 -7 -7 -7 -7 ----------- Run | Yrd Mat Min Exi Min Mat Fac Low Low Zio Dee Matter Collected 4151 | 304 720 315 . 168 217 1180 222 139 884 2 Remotely . | . . . . . . . . . . . Salvage Created 3946 | 69 757 247 . 59 204 1622 145 16 827 . Parts 205 | 3 38 21 . 1 12 64 17 1 48 . Haulers Intercepted 4 | . 2 . . . . 2 . . . . Recyclers Shooed 6 | . 5 . . . . 1 . . . . Parts Field Recycled . | . . . . . . . . . . . Retrieved Matter . | . . . . . . . . . . . Parts Self-Destructed 20 | . . . . . . . 15 5 . . Prevented . | . . . . . . . . . . . Parts Restored . | . . . . . . . . . . . Kills | -11 -10 -10 -10 -9 -8 -7 -7 -7 -7 -7 ------- Run | Yrd Mat Min Exi Min Mat Fac Low Low Zio Dee Combat Hostiles Destroyed 66 | . 6 11 . 7 6 21 2 1 9 3 Melee 1 | . . . . . . . . . 1 . Guns 23 | . . . . . . 16 2 1 3 1 Cannons 22 | . . 3 . 7 3 5 . . 4 . AOE 19 | . 6 8 . . 3 . . . . 2 Classes Destroyed 21 | 2 6 1 . 2 . 3 2 1 4 . Worker 7 | . 5 1 . . . 1 . . . . Builder 4 | . 4 . . . . . . . . . Tunneler 2 | 1 1 . . . . . . . . . Hauler 4 | . 2 . . . . 2 . . . . Recycler 11 | 1 4 1 . . . 5 . . . . Minesweeper 1 | . . . . . . . 1 . . . Mechanic 2 | . 1 . . . . 1 . . . . Operator 1 | . . . . . . 1 . . . . Watcher 6 | . 3 . . . 1 2 . . . . Swarmer 15 | . 6 9 . . . . . . . . Grunt 17 | . . 2 . . 3 12 . . . . Brawler 4 | . . . . . . 4 . . . . Sentry 8 | . . . . 1 3 3 1 . . . Programmer 2 | . . . . . . 2 . . . . Behemoth 1 | . . . . . . . 1 . . . Zionite 13 | . . . . . . . . . 13 . Z-Technician 5 | . . . . . . . . . . 5 Thief 1 | . . . . . . . . 1 . . Assembled 9 | . . . . 6 . . . . . 3 Thug 1 | . . . . . . . . . 1 . Savage 1 | . . . . . . . . . 1 . Butcher 1 | . . . . . . . . . 1 . Martyr 1 | . . . . . . . . . 1 . Mutant 4 | . . . . . . . . . 4 . Best Kill Streak 8 | 2 7 4 . 4 4 5 1 1 8 5 Combat Bots Only 4 | . 3 3 . 4 4 4 1 1 3 3 Max Kills in Single Turn 5 | 1 3 3 . 1 3 2 1 1 2 5 Gunslinging . | . . . . . . . . . . . Exploded 3 | . 3 3 . . 3 . . . . 1 Melee 1 | . . . . . . . . . 1 . Uniques/NPCs Destroyed 1 | . . . . . . . . . 1 . 7V-RTL (-7/Zion) Combat | -11 -10 -10 -10 -9 -8 -7 -7 -7 -7 -7 -------- Run | Yrd Mat Min Exi Min Mat Fac Low Low Zio Dee Hostile Shots Fired 565 | . 7 8 . 4 32 196 54 2 230 32 Missed 178 | . 1 3 . . 15 57 18 . 73 11 Hits 387 | . 6 5 . 4 17 139 36 2 157 21 Melee 24 | . . . . 4 . 8 . 2 9 1 Projectile 363 | . 6 5 . . 17 131 36 . 148 20 AOE 13 | . . . . . . . . . 13 . Critical Strikes 19 | . . . . . 1 10 . . 8 . Damage Taken 7812 | . 70 165 . 137 292 1880 597 . 3634 1037 Core 784 | . 28 . . . 37 166 80 . 389 84 Absorbed by Shields 72 | . . . . . . . . . 72 . Core Remaining (%) 93 | 100 . . . 88 93 . . . . . Volleys Fired 425 | 4 56 12 . 14 20 121 21 2 165 10 Largest 2 | 2 2 2 . 2 2 2 2 2 2 2 Hottest 128 | 40 70 66 . 66 66 66 53 55 123 128 Shots Fired 697 | 8 110 20 . 28 37 242 40 4 195 13 Gun 453 | 8 94 . . . . 176 40 4 125 6 Cannon 221 | . 14 16 . 28 36 66 . . 58 3 Launcher 23 | . 2 4 . . 1 . . . 12 4 Special . | . . . . . . . . . . . Kinetic 562 | 8 104 16 . 28 36 242 40 4 80 4 Thermal 89 | . 4 . . . . . . . 80 5 Explosive 23 | . 2 4 . . 1 . . . 12 4 Electromagnetic 23 | . . . . . . . . . 23 . Robot Hit Streak 17 | 6 10 5 . 6 5 15 14 6 17 4 Robot Miss Streak 6 | . 5 1 . 4 3 6 1 1 3 5 Penetration Max . | . . . . . . . . . . . Secondary Targets 2 | . . . . . . . . . 2 . Max Gunslinging Chain 1 | . . . . . . . . . 1 . Shots Hit Robots 448 | 6 65 11 . 10 21 165 35 2 125 8 Core Hits 209 | 3 32 16 . 8 11 63 16 2 41 17 Critical Kills 8 | . 2 . . . . . . . 6 . Critical Parts Destroyed 7 | . . . . . . . . . 7 . Critical Strikes 28 | . 3 . . . 2 3 . . 20 . Destroy 16 | . 2 . . . . . . . 14 . Blast 6 | . 1 . . . 2 3 . . . . Sever 6 | . . . . . . . . . 6 . Melee Attacks 54 | . . . . . . . . . 54 . Impact . | . . . . . . . . . . . Slashing 53 | . . . . . . . . . 53 . Piercing . | . . . . . . . . . . . Sneak Attacks . | . . . . . . . . . . . Combat Hostiles . | . . . . . . . . . . . Follow-up Attacks . | . . . . . . . . . . . Damage Inflicted 13453 | 76 1187 683 . 217 651 3130 609 55 4029 2816 Guns 4830 | 76 823 . . . . 2127 609 55 1084 56 Cannons 2942 | . 109 225 . 217 495 1003 . . 881 12 Explosions 3955 | . 255 458 . . 156 . . . 338 2748 Melee 1726 | . . . . . . . . . 1726 . Ramming . | . . . . . . . . . . . Kinetic 7003 | 76 895 225 . 217 495 3130 609 55 1289 12 Thermal 2797 | . 37 . . . . . . . 314 2446 Explosive 1521 | . 255 458 . . 156 . . . 294 358 Electromagnetic 406 | . . . . . . . . . 406 . Impact . | . . . . . . . . . . . Slashing 1726 | . . . . . . . . . 1726 . Piercing . | . . . . . . . . . . . Highest Corruption 6 | . . . . . . 3 3 . 6 6 Average Corruption 4 | . . . . . . 2 2 . 5 6 Corruption Purged 6 | . . . . . . 3 3 . . . Corruption Blocked . | . . . . . . . . . . . Effects 35 | . . . . . . 14 1 . 12 8 Message Errors 7 | . . . . . . 1 . . 3 3 Matter Fused 11 | . . . . . . 6 . . 2 3 Heat Flow Errors 4 | . . . . . . 4 . . . . Energy Discharges 4 | . . . . . . 2 . . 1 1 Parts Fused 1 | . . . . . . 1 . . . . Data Loss (minor) 2 | . . . . . . . . . 2 . Data Loss (major) 2 | . . . . . . . 1 . 1 . Misfires 1 | . . . . . . . . . . 1 Weapon Failures 3 | . . . . . . . . . 3 . Overload Shots . | . . . . . . . . . . . Overflow Damage 662 | . . 8 . . 20 22 . . 11 601 Projectiles 53 | . . . . . 20 22 . . 11 . Explosions 609 | . . 8 . . . . . . . 601 Melee . | . . . . . . . . . . . Knockbacks 18 | . . 3 . 2 1 6 . . 6 . Impact . | . . . . . . . . . . . Kinetic 17 | . . 3 . 2 1 6 . . 5 . Secondary 1 | . . . . . . . . . 1 . Self-Inflicted Damage 569 | . 23 119 . . . . . . . 427 Shots 8 | . 1 4 . . . . . . . 3 Rammed . | . . . . . . . . . . . Targets Rammed 1 | . . . . . . 1 . . . . Kicked . | . . . . . . . . . . . Crushed 1 | . . . . . . 1 . . . . Highest Temperature 333 | . . . . . 165 333 . . 224 10 Average Temperature 101 | . . . . . 68 114 . . 120 10 Received Heat Transfer 1619 | . . . . . 162 885 108 . 320 144 Siege Activations . | . . . . . . . . . . . Martial Activations . | . . . . . . . . . . . Shielding Activations . | . . . . . . . . . . . Robots Disrupted . | . . . . . . . . . . . Combat Hostiles . | . . . . . . . . . . . Robots Corrupted 2 | . . . . . . . . . 2 . Combat Hostiles 1 | . . . . . . . . . 1 . Parts Fried 4 | . . . . . . . . . 4 . Impact Corruptions . | . . . . . . . . . . . Robots Melted . | . . . . . . . . . . . Combat Hostiles . | . . . . . . . . . . . Parts Melted 4 | . . . . 2 . . . . 2 . Heat Transferred 580 | . 111 . . . . . . . 420 49 Parts Sabotaged . | . . . . . . . . . . . Parts Stolen 2 | . . . . . . . . 2 . . Parts Stripped . | . . . . . . . . . . . Power Chain Reactions 1 | . . . . . . . . . 1 . Alert | -11 -10 -10 -10 -9 -8 -7 -7 -7 -7 -7 ------- Run | Yrd Mat Min Exi Min Mat Fac Low Low Zio Dee Maximum Alert Level . | . . . . . . . . . . . Low Security (%) 100 | 100 100 100 . 100 100 100 . . . . Level 1 . | . . . . . . . . . . . Level 2 . | . . . . . . . . . . . Level 3 . | . . . . . . . . . . . Level 4 . | . . . . . . . . . . . Level 5 . | . . . . . . . . . . . High Security . | . . . . . . . . . . . Max Security . | . . . . . . . . . . . Peak Influence 151 | 5 83 151 . 20 115 102 . . . . Initial 21 | . 3 21 . . . 14 . . . . Average 41 | 1 48 42 . 1 62 47 . . . . Influence Increases 1500 | 10 275 308 . 23 203 626 55 . . . Destroy 0b10 Robot/C 940 | . 120 220 . 20 120 420 40 . . . Destroy 0b10 Robot/NC 195 | 10 100 15 . . 5 60 5 . . . Destroy Leader 220 | . 30 40 . . 42 98 10 . . . Successful Hack 37 | . . . . . 6 31 . . . . Disable Machine 30 | . 15 . . . 15 . . . . . Destroy Structure 63 | . 10 33 . 3 15 2 . . . . Lose Combat Pursuer 15 | . . . . . . 15 . . . . Influence Decreases 1500 | 5 226 235 127 23 171 601 112 . . . Entered New Map 202 | . 2 33 127 . . 18 22 . . . Time Decay 1199 | 5 224 192 . 22 161 505 90 . . . Lost Part 61 | . . 10 . 1 10 40 . . . . Purge Threat 38 | . . . . . . 38 . . . . Squads Dispatched 10 | . . . . . 2 8 . . . . Investigation 2 | . . . . . . 2 . . . . Extermination 3 | . . . . . . 3 . . . . Reinforcement 5 | . . . . . 2 3 . . . . Assault . | . . . . . . . . . . . Garrison . | . . . . . . . . . . . Intercept . | . . . . . . . . . . . Searches Triggered . | . . . . . . . . . . . Construction Impeded . | . . . . . . . . . . . Haulers Reinforced 1 | . . . . . . 1 . . . . Active Scanning Responses . | . . . . . . . . . . . Cargo Convoy Interrupts . | . . . . . . . . . . . Stealth | -11 -10 -10 -10 -9 -8 -7 -7 -7 -7 -7 --------- Run | Yrd Mat Min Exi Min Mat Fac Low Low Zio Dee Distress Signals 4 | . 1 . . . 2 1 . . . . Communications Jammed 10 | . . . . . . 10 . . . . Distress Signals 10 | . . . . . . 10 . . . . Times Spotted 106 | . 10 11 . 7 11 30 2 2 27 6 Peak Tracking Total 6 | . 4 3 . 1 4 4 1 2 6 3 Tactical Retreats 7 | . . . . . . 1 . . 6 . Traps | -11 -10 -10 -10 -9 -8 -7 -7 -7 -7 -7 ------- Run | Yrd Mat Min Exi Min Mat Fac Low Low Zio Dee Traps Triggered 1 | . . . . . . 1 . . . . Indirectly . | . . . . . . . . . . . Trap Hack Attempts . | . . . . . . . . . . . Triggered . | . . . . . . . . . . . Disarmed . | . . . . . . . . . . . Reprogrammed . | . . . . . . . . . . . Reused 1 | . . . . . . . . . . 1 Traps Extracted . | . . . . . . . . . . . Installed 4 | . . . . . . . . . . 4 Triggered . | . . . . . . . . . . . Most Traps Carried 4 | . . . . . . . 4 4 4 4 Machines | -11 -10 -10 -10 -9 -8 -7 -7 -7 -7 -7 ---------- Run | Yrd Mat Min Exi Min Mat Fac Low Low Zio Dee Machines Disabled 6 | . 1 . . 1 1 . . . 1 2 Max in Single Turn 2 | . 1 . . 1 1 . . . 1 2 Machines Repaired . | . . . . . . . . . . . Machines Dismantled . | . . . . . . . . . . . Machines Sabotaged . | . . . . . . . . . . . Overloaded Fab Kills . | . . . . . . . . . . . Hacking | -11 -10 -10 -10 -9 -8 -7 -7 -7 -7 -7 --------- Run | Yrd Mat Min Exi Min Mat Fac Low Low Zio Dee Machines Accessed 10 | . . . 1 . 1 7 1 . . . Terminals 5 | . . . . . . 5 . . . . Fabricators 2 | . . . . . . 2 . . . . Repair Stations . | . . . . . . . . . . . Recycling Units . | . . . . . . . . . . . Scanalyzers 1 | . . . . . 1 . . . . . Garrison Access . | . . . . . . . . . . . Total Hacks 29 | . . . 1 . 11 16 1 . . . Successful 16 | . . . 1 . 9 5 1 . . . Failed 13 | . . . . . 2 11 . . . . Catastrophic 4 | . . . . . . 4 . . . . Database Lockouts . | . . . . . . . . . . . Manual 9 | . . . . . . 5 . . 4 . Terminals 10 | . . . . . . 10 . . . . Fabricators 6 | . . . . . . 6 . . . . Repair Stations . | . . . . . . . . . . . Recycling Units . | . . . . . . . . . . . Scanalyzers 11 | . . . . . 11 . . . . . Garrison Access . | . . . . . . . . . . . Terminal Hacks 4 | . . . 1 . . 2 1 . . . Record 1 | . . . 1 . . . . . . . Open Door 1 | . . . . . . . 1 . . . Branch Access Points 1 | . . . . . . 1 . . . . Unreport Threat 1 | . . . . . . 1 . . . . Fabricator Hacks 1 | . . . . . . 1 . . . . Load Schematic 1 | . . . . . . 1 . . . . Repair Station Hacks . | . . . . . . . . . . . Recycling Unit Hacks . | . . . . . . . . . . . Scanalyzer 9 | . . . . . 9 . . . . . Insert Component 3 | . . . . . 3 . . . . . Analyze 3 | . . . . . 3 . . . . . Retrieve Study 3 | . . . . . 3 . . . . . Garrison Access Hacks . | . . . . . . . . . . . Unauthorized Hacks 2 | . . . . . . 2 . . . . Terminals 2 | . . . . . . 2 . . . . Botnet 2 | . . . . . . 2 . . . . Fabricators . | . . . . . . . . . . . Repair Stations . | . . . . . . . . . . . Recycling Units . | . . . . . . . . . . . Scanalyzers . | . . . . . . . . . . . Garrison Access . | . . . . . . . . . . . Data Cores Recovered . | . . . . . . . . . . . Used . | . . . . . . . . . . . Hacking Detections 8 | . . . . . 1 7 . . . . Full Trace Events 2 | . . . . . . 2 . . . . Feedback Events . | . . . . . . . . . . . Feedback Blocked . | . . . . . . . . . . . Robot Schematics Acquired . | . . . . . . . . . . . Robots Built . | . . . . . . . . . . . Authchips . | . . . . . . . . . . . Time . | . . . . . . . . . . . Total Robot Build Rating . | . . . . . . . . . . . Part Schematics Acquired 3 | . . . . . 3 . . . . . Parts Built . | . . . . . . . . . . . Authchips . | . . . . . . . . . . . Time . | . . . . . . . . . . . Total Part Build Rating . | . . . . . . . . . . . Part Studies Acquired 3 | . . . . . 3 . . . . . Parts Repaired . | . . . . . . . . . . . Time . | . . . . . . . . . . . Parts Recycled . | . . . . . . . . . . . Recycled Matter . | . . . . . . . . . . . Retrieved Matter . | . . . . . . . . . . . Retrieved Components . | . . . . . . . . . . . Parts Scanalyzed 3 | . . . . . 3 . . . . . Part Schematics Acquired 3 | . . . . . 3 . . . . . Parts Damaged . | . . . . . . . . . . . Bothacking | -11 -10 -10 -10 -9 -8 -7 -7 -7 -7 -7 ------------ Run | Yrd Mat Min Exi Min Mat Fac Low Low Zio Dee Used RIF Installer . | . . . . . . . . . . . Robots Hacked 1 | . . . . . . . . . 1 . Non-combat . | . . . . . . . . . . . Combat 1 | . . . . . . . . . 1 . Robot Hacks Applied 1 | . . . . . . . . . 1 . parse_system 1 | . . . . . . . . . 1 . Relay Couplers Released . | . . . . . . . . . . . Fabnet Peak Effective % . | . . . . . . . . . . . Robots Rewired . | . . . . . . . . . . . Allies Hacked . | . . . . . . . . . . . Hacks Repelled . | . . . . . . . . . . . Allies | -11 -10 -10 -10 -9 -8 -7 -7 -7 -7 -7 -------- Run | Yrd Mat Min Exi Min Mat Fac Low Low Zio Dee Total Allies 1 | . . 1 . . . . . . . . Largest Group 1 | . . 1 1 . . . . . . . Highest-Rated Group 31 | . . 31 31 . . . . . . . Highest-Rated Ally 31 | . . 31 31 . . . . . . . Total Orders 2 | . . . . . . . . . 2 . EXPLORE 1 | . . . . . . . . . 1 . RETURN 1 | . . . . . . . . . 1 . Ally Attacks . | . . . . . . . . . . . Total Damage . | . . . . . . . . . . . Kills . | . . . . . . . . . . . Allies Corrupted . | . . . . . . . . . . . Allies Melted . | . . . . . . . . . . . Intel | -11 -10 -10 -10 -9 -8 -7 -7 -7 -7 -7 ------- Run | Yrd Mat Min Exi Min Mat Fac Low Low Zio Dee Active Infowar (turns) 5921 | 6 547 563 361 458 341 1577 585 536 947 . Seismic 5921 | 6 547 563 361 458 341 1577 585 536 947 . Jamming 342 | . . . . . . 342 . . . . Robot Analysis Total . | . . . . . . . . . . . Derelict Logs Recovered 10 | . . 2 . 2 . . 3 2 1 . Drone Launches 1 | . . . . . . . . . 1 . Drone Recoveries 1 | . . . . . . . . . 1 . Exploration | -11 -10 -10 -10 -9 -8 -7 -7 -7 -7 -7 ------------- Run | Yrd Mat Min Exi Min Mat Fac Low Low Zio Dee Turns Passed 8792 | 76 547 563 361 458 341 1814 585 536 3069 442 Spaces Moved 4438 | 54 281 391 329 263 207 866 337 327 1140 243 Core 11 | 11 . . . . . . . . . . Treads 1841 | . . . . . 49 866 337 327 262 . Legs . | . . . . . . . . . . . Wheels 2586 | 43 281 391 329 263 158 . . . 878 243 Hover . | . . . . . . . . . . . Flight . | . . . . . . . . . . . Fastest Speed 50 | 50 100 110 110 110 95 156 156 156 120 135 Average Speed 140 | 89 113 123 110 112 111 159 156 158 144 164 Slowest Speed 240 | 100 130 125 110 125 160 160 156 240 180 165 Overloaded Moves . | . . . . . . . . . . . Propulsion Burnouts . | . . . . . . . . . . . Robots Hopped . | . . . . . . . . . . . Potential Cave-ins . | . . . . . . . . . . . Cave-ins Triggered . | . . . . . . . . . . . Exploration Rate (%) 48 | 4 48 64 76 57 25 28 57 54 85 30 Regions Visited 10 Branch Regions 7 Pre-discovered Areas 3 | . . 1 . . . . 1 . 1 . Known Exits Taken 2 | . . . . . 1 1 . . . . Unknown Exits Taken 8 | 1 1 1 1 1 . . 1 1 1 . Scrap Searched 8 | . . 1 . 1 . . . 3 3 . Spaces Dug 61 | . 5 39 . . . . . . 17 . Terrain Destroyed 181 | . 10 39 . 3 14 . . . 48 67 Melee . | . . . . . . . . . . . Projectile 13 | . 2 . . 3 1 . . . 7 . AOE 168 | . 8 39 . . 13 . . . 41 67 Terrain Rammed . | . . . . . . . . . . . Walls Destroyed . | . . . . . . . . . . . Machines Disabled . | . . . . . . . . . . . Actions | -11 -10 -10 -10 -9 -8 -7 -7 -7 -7 -7 --------- Run | Yrd Mat Min Exi Min Mat Fac Low Low Zio Dee Total 6313 | 69 395 450 328 399 285 1129 369 342 2279 268 Wait 1154 | . 27 37 . 112 28 86 1 4 858 1 Move 4428 | 53 280 390 328 262 206 865 336 326 1139 243 Hop . | . . . . . . . . . . . Pick Up 58 | 4 12 2 . 3 9 13 2 2 10 1 Fast Attach 37 | 7 1 . . 1 4 7 1 2 14 . Attach 18 | . . . . 1 4 6 1 . 4 2 Detach 1 | . . . . . . 1 . . . . Swap 68 | 1 13 7 . 2 4 9 5 2 20 5 Drop 65 | . 6 2 . 4 10 20 2 4 15 2 Fire 425 | 4 56 12 . 14 20 121 21 2 165 10 Melee 54 | . . . . . . . . . 54 . Ram . | . . . . . . . . . . . Kick . | . . . . . . . . . . . Crush 1 | . . . . . . 1 . . . . Escape Stasis . | . . . . . . . . . . . Rewire . | . . . . . . . . . . . Trap 4 | . . . . . . . . . . 4 Miscellaneous . | . . . . . . . . . . . Route ------- -11/Scrapyard -10/Materials (discovered 2 exits: *Mat / [*Min]) -10/Mines (discovered 3 exits: *Mat x2 / *Exi) -10/Exiles -9/Mines -8/Materials (discovered 2 exits: *Fac x2) -7/Factory (discovered 3 exits: [*Fac] / *Low x2) -7/Lower Caves -7/Lower Caves (discovered 2 exits: [*Fac] / *Zio) -7/Zion (discovered 2 exits: [*Dee] / [*Pro]) -7/Deep Caves History --------- Turn | Location | Event 34 | -11/Scrapyard | Discovered new exit (range 16) 77 | -11/Scrapyard | Entered Materials 201 | -10/Materials | Discovered new exit (range 11) 316 | -10/Materials | Build established: Mutant 342 | -10/Materials | Discovered new exit (range 15) 624 | -10/Materials | Entered Mines 636 | -10/Mines | Learned 4 Materials zone layouts 651 | -10/Mines | A weapon hastily lodged in a ceiling crevice suddenly fell to the ground 706 | -10/Mines | Received a Rocket Launcher from a helpful Derelict 774 | -10/Mines | Discovered new exit (range 8) 859 | -10/Mines | Identified exit to Materials 1142 | -10/Mines | Escorted by a lone wolf Derelict 1162 | -10/Mines | Learned location of Storage (-9) 1179 | -10/Mines | Deemed a non-threat by the Exiles lab entrance 1180 | -10/Mines | Discovered new exit (range 5) 1187 | -10/Mines | Entered Exiles 1187 | -10/Exiles | Found Exiles lab abandoned 1187 | -10/Exiles | Accompanied by 1 ally 1538 | -10/Exiles | Discovered new exit (range 11) 1548 | -10/Exiles | Entered Mines 1641 | -9/Mines | Assembled infested the area 1642 | -9/Mines | Found a Scrap Suit stashed away for nefarious purposes 1895 | -9/Mines | Learned Materials terminal intel 1925 | -9/Mines | Joined a pair of Derelicts in attacking an 0b10 outpost 1992 | -9/Mines | Discovered new exit (range 14) 2006 | -9/Mines | Entered Materials 2006 | -8/Materials | Evolved 4 slots: Propulsion x2, Utility x2 2007 | -8/Materials | Identified exit to Factory 2008 | -8/Materials | Loaded intel: 12 terminal locations 2342 | -8/Materials | Discovered exit to Factory (range 4) 2347 | -8/Materials | Entered Factory 2347 | -7/Factory | Evolved 2 slots: Utility x2 2724 | -7/Factory | Found Prototype Launcher 2724 | -7/Factory | Identified Rocket Array 2728 | -7/Factory | Found Rocket Array 2739 | -7/Factory | Found Rocket Array 3528 | -7/Factory | Identified exit to Lower Caves 3572 | -7/Factory | Discovered new exit (range 8) 4161 | -7/Factory | Entered Lower Caves 4221 | -7/Lower Caves | Attracted the attention of an 0b10 checkpoint 4292 | -7/Lower Caves | Learned location of Zion (-7) 4348 | -7/Lower Caves | Learned Factory trap positions 4373 | -7/Lower Caves | Spotted B-75 Beast 4405 | -7/Lower Caves | Destroyed B-75 Beast 4689 | -7/Lower Caves | Discovered new exit (range 16) 4694 | -7/Lower Caves | Build established: Scavenger-Mutant 4746 | -7/Lower Caves | Entered another Lower Caves area 4748 | -7/Lower Caves | Learned Factory interactive machine intel 4751 | -7/Lower Caves | Learned location of 2 exits from Factory 4771 | -7/Lower Caves | Discovered new exit (range 13) 4794 | -7/Lower Caves | Encountered a Warlord checkpoint 5025 | -7/Lower Caves | Build established: Mutant 5199 | -7/Lower Caves | Discovered new exit (range 15) 5282 | -7/Lower Caves | Entered Zion 5426 | -7/Zion | Learned 4 Factory zone layouts 5439 | -7/Zion | Found Prototype Launcher 5439 | -7/Zion | Identified Gui. Missile Launcher 5461 | -7/Zion | Discovered new exit (range 9) 5533 | -7/Zion | Acquired unknown access codes intercepted by a Zionite 5663 | -7/Zion | Learned location of Data Miner (-6) 5889 | -7/Zion | Opened final containment barrier to the Deep Caves 6009 | -7/Zion | Met Imprinter 6323 | -7/Zion | Given the Hacking Drone Bay 6337 | -7/Zion | Found Prototype Device 6354 | -7/Zion | Identified Hacking Drone Bay 6584 | -7/Zion | Discovered new exit (range 3) 6584 | -7/Zion | Saw the warning signs outside the Deep Caves entrance 6646 | -7/Zion | Attacked by Zionites 6927 | -7/Zion | Build established: Derelict-Mutant 7662 | -7/Zion | 7V-RTL came to Zion's defense 7774 | -7/Zion | Found Adv. Powered Armor 7809 | -7/Zion | Lost 7 parts (3n3u1w) 7828 | -7/Zion | Core integrity fell below 50% 7851 | -7/Zion | Destroyed 7V-RTL 7867 | -7/Zion | Found Adv. Powered Armor 8137 | -7/Zion | Core integrity fell below 20% 8351 | -7/Zion | Entered Deep Caves 8515 | -7/Deep Caves | Build established: Scavenger-Mutant 8771 | -7/Deep Caves | Attacked by Z-Imprinter 8774 | -7/Deep Caves | Z-Facility disabled 8793 | -7/Deep Caves | Destroyed by Z-Imprinter with Zionite Laser-M Last Messages --------------- I've worked too hard for our future just to have you ruin everything! 08772_ X8B SW#5J8 B84WCPL 08774_ Z-Facility disabled. 08774_ HV Slug penetrates Z-Facility. 08774_ HV Slug penetrates Z-Power. 08774_ Z-Power explodes. 08774_ Destroyed Hover Unit. 08774_ Destroyed Datajack. 08774_ Destroyed Lgt. Ion Engine. 08774_ BM-2CE(o) destroyed. 08774_ Destroyed Prototype Device. 08774_ Destroyed Prototype Reactor. 08774_ Bore Cannon destroyed. 08774_ Destroyed Bore Cannon. 08774_ Exp. Cooling System destroyed. 08774_ Destroyed Exp. Cooling System. 08774_ Adv. Powered Armor destroyed. 08774_ Destroyed Adv. Powered Armor. 08783_ Railgun destroyed. 08786_ Arm. Heavy Treads destroyed. Map ----- +----------------------------------------------------+ | ?????????????????????????????? #?? | | ?????????????????????????????? ##? | | ?????????????????????????????? #? | | ?????????????????????????????? #? | | ?????????????????????????????? #? | | ?????????????????????????????? ##? | | ?????????????????????????????? ##? | | ?????????????????????????????? #? | | ?????????????????????????????? #? | | ?????????????????????????? ##? | | ??????????????????????? ##?? | | ????????????????????? ##?? | | ?????????????????? ##? | | ???????????????? z #? | | ?????????????? z #? | | ????????????? ##? | | ???????????? I #?? | | ???????????? ##? | | ??????????? #? | | ??????????? ## | | ?????????? # | | ?????????? # | | ?????????? | | ????????? | | ????????? | | ???????? @ ;;;;# | | ???????? ;;; ### #### | | ????????# ;; ###?######??## # | | ??????????# ;;;;; ###????????????## ### | | ??????????######;;;;; # ##????????????????###?? | | ???????????????### ### ??????????????????????? | | | | | | | | | | | | | | | | | | | | | | | | | | | | | | | | | | | | | | | +----------------------------------------------------+ Best States ------------- Heat Dissipation 110 Energy Generation 33 Energy Capacity 350 Matter Stores 300 Matter Capacity 300 Sight Range 16 Terrain Scan Density 10 Jamming Range 12 Power Amplification 40 Armor Coverage 800 Evasion (%) 41 Core Analysis 6 Recoil Reduction 4 Salvage Targeting 1 Offensive Hacking 10 Trap Extractor Capacity 6 Item Schematics ----------------- Cmb. Airjet | -8/Materials | Scanalyzed Bore Cannon | -8/Materials | Scanalyzed Hcp. Matter Pod | -8/Materials | Scanalyzed Robot Schematics ------------------ None Fabricated ------------ Nothing Repaired ---------- Nothing Studied --------- Wheel | -8/Materials | Hacked Com. Wheel | -8/Materials | Hacked Imp. Light Cannon | -8/Materials | Hacked Alien Tech Used ----------------- None Achievements -------------- None Challenges ------------ None Game ------ Seed MinesnifferGravityBarrier Manual? 0 Play Time 01:02:23 Cumulative 1391.3 hours Start 2026.03.13 @ 16:36:48 End 2026.03.13 @ 17:36:57 Sessions 1 Manual Loads 0 Difficulty Rogue Special Mode None Game No. 463 Rogue 456 Adventurer 4 Explorer 3 Win Type - Total 39 Types 18/5/2/2/1/2/4/1/2/2 Lore% 97 Gallery% 94 Achievement% 87 Wizard Run 0 Options --------- Layout 0 ASCII 0 Keyboard 0 Movement Numpad Keybinds 0 Fullscreen 2 Font 18/SmallcapsGlow Map View 76x50 Zoom Use 0% Tactical HUD 1 Map Filters NONE Filters NONE Steam 1 RUN: 4ab5ccaf-7703-4d9a-b6c8-f822273f0d75